Cogmind - Beta 16 @@@ ROGUE MODE // 2025.10.28 @ 06:08:16 Player: osman sinnoks Result: Destroyed by G-34 Mercenary with Small Laser Performance ------------- Evolutions (0) 0 Regions Visited (1) 200 Robots Destroyed (12) 60 Value Destroyed (294) 294 Prototype IDs (0) 0 Alien Tech Used (0) 0 Bonus (0) 0 TOTAL SCORE: 554 Bonus ------- None Cogmind --------- Core Integrity 0/250 Matter 290/300 Energy 121/125 System Corruption 0% Temperature Cool (14) Movement Walking (120) Location -10/Materials Parts ------- > --- POWER (1) -------- Light Ion Engine > --- PROPULSION (2) --- Aluminum Leg Aluminum Leg > --- UTILITY (2) ------ Small Storage Unit Sensor Array > --- WEAPON (2) ------- Small Laser Particle Gun > --- INVENTORY (8) ---- Aluminum Leg Wheel Compact Wheel Heat Sink High-capacity Matter Pod (47) Small Laser Light Assault Rifle Peak State ------------ > --- POWER ------------ Light Ion Engine > --- PROPULSION ------- Aluminum Leg Aluminum Leg > --- UTILITY ---------- Heat Sink Small Storage Unit > --- WEAPON ----------- Small Laser Particle Gun > --- INVENTORY -------- Aluminum Leg Wheel Compact Wheel High-capacity Matter Pod Small Laser Light Assault Rifle [Rating: 8] Favorites ----------- Power Light Ion Engine Engine Light Ion Engine Propulsion Aluminum Leg Leg Aluminum Leg Utility Small Storage Unit Device Seismic Detector Storage Small Storage Unit Weapon Medium Laser Energy Gun Medium Laser Ballistic Gun Light Assault Rifle Build | -11 -10 ------- Run | Yrd Mat Slots Evolved . | . . Power . | . . Propulsion . | . . Utility . | . . Weapon . | . . Parts Attached 15 | 7 8 Power 2 | 1 1 Engine 2 | 1 1 Core . | . . Reactor . | . . Propulsion 4 | 2 2 Treads . | . . Leg 4 | 2 2 Wheel . | . . Hover . | . . Flight . | . . Utility 4 | 2 2 Device 3 | 1 2 Storage 1 | 1 . Processor . | . . Hackware . | . . Protection . | . . Artifact . | . . Weapon 5 | 2 3 Energy Gun 3 | 1 2 Energy Cannon . | . . Ballistic Gun 2 | 1 1 Ballistic Cannon . | . . Launcher . | . . Special Weapon . | . . Impact Weapon . | . . Slashing Weapon . | . . Piercing Weapon . | . . Special Melee Weapon . | . . Unidentified Prototypes . | . . Parts Lost 6 | . 6 Power 1 | . 1 Propulsion 2 | . 2 Utility 1 | . 1 Weapon 2 | . 2 Highest Loss Streak 6 | . 6 To Critical Strikes . | . . Average Backups 5 | 2 5 Power . | . . Propulsion 2 | 1 2 Utility . | . 1 Weapon 1 | 1 1 Tool/Special . | . . Unused Backups 5 | . 5 Power . | . . Propulsion 3 | . 3 Utility 1 | . 1 Weapon 1 | . 1 Tool/Special . | . . Average Slot Usage (%) 89 | . 89 Engine 11 | . 11 Leg 24 | . 24 Device 9 | . 9 Storage 14 | . 14 Energy Gun 17 | . 17 Ballistic Gun 10 | . 10 Peak Build Rating 8 | 7 8 Average Rating 6 | 4 6 On Entrance 3 | . 7 Avg Prop Armor Cover (%) . | . . Naked Turns . | . . Heaviest Build 13 | 12 13 Greatest Support 20 | 20 20 Greatest Overweight (x) 2 | 2 2 Average Overweight (x) . | . . Largest Inventory Capacity 8 | 8 8 Average Capacity 7 | 7 8 Most Carried 7 | 6 7 Average Carried 5 | 3 5 Final Capacity 8 | 8 8 Final Carried 7 | 4 7 Class Distribution -------------------- 95% | Mutant 4% | Scavenger-Mutant Dominant Class ---------------- Mutant | -10/Materials Resources | -11 -10 ----------- Run | Yrd Mat Matter Collected 480 | 247 233 Remotely . | . . Salvage Created 360 | 70 290 Parts 25 | 8 17 Haulers Intercepted . | . . Recyclers Shooed 1 | . 1 Parts Field Recycled . | . . Retrieved Matter . | . . Parts Self-Destructed . | . . Prevented . | . . Parts Restored . | . . Kills | -11 -10 ------- Run | Yrd Mat Combat Hostiles Destroyed 8 | . 8 Guns 7 | . 7 AOE 1 | . 1 Classes Destroyed 4 | 1 3 Tunneler 3 | 3 . Recycler 1 | . 1 Swarmer 2 | . 2 Grunt 6 | . 6 Best Kill Streak 6 | 3 6 Combat Bots Only 3 | . 3 Max Kills in Single Turn 1 | 1 1 Gunslinging . | . . Exploded 1 | . 1 Melee . | . . Uniques/NPCs Destroyed . | . . Combat | -11 -10 -------- Run | Yrd Mat Hostile Shots Fired 90 | . 90 Missed 24 | . 24 Hits 66 | . 66 Projectile 66 | . 66 Critical Strikes 1 | . 1 Damage Taken 836 | . 836 Core 257 | . 257 Absorbed by Shields . | . . Core Remaining (%) 100 | 100 . Volleys Fired 51 | 8 43 Largest 2 | 2 2 Hottest 105 | 70 105 Shots Fired 95 | 16 79 Gun 95 | 16 79 Cannon . | . . Launcher . | . . Special . | . . Kinetic 53 | 8 45 Thermal 42 | 8 34 Explosive . | . . Electromagnetic . | . . Robot Hit Streak 12 | 6 12 Robot Miss Streak 6 | 1 6 Penetration Max . | . . Secondary Targets 2 | . 2 Max Gunslinging Chain 1 | . 1 Shots Hit Robots 62 | 10 52 Core Hits 22 | 5 17 Critical Kills . | . . Critical Parts Destroyed 1 | . 1 Critical Strikes 1 | . 1 Destroy 1 | . 1 Melee Attacks . | . . Impact . | . . Slashing . | . . Piercing . | . . Sneak Attacks . | . . Combat Hostiles . | . . Follow-up Attacks . | . . Damage Inflicted 878 | 106 772 Guns 685 | 106 579 Cannons . | . . Explosions 193 | . 193 Melee . | . . Ramming . | . . Kinetic 399 | 57 342 Thermal 418 | 49 369 Explosive 61 | . 61 Electromagnetic . | . . Impact . | . . Slashing . | . . Piercing . | . . Highest Corruption . | . . Average Corruption . | . . Corruption Purged . | . . Corruption Blocked . | . . Overload Shots . | . . Overflow Damage 12 | . 12 Projectiles . | . . Explosions 12 | . 12 Melee . | . . Knockbacks . | . . Impact . | . . Kinetic . | . . Secondary . | . . Self-Inflicted Damage 84 | . 84 Shots 1 | . 1 Rammed . | . . Targets Rammed . | . . Kicked . | . . Crushed . | . . Highest Temperature 315 | 100 315 Average Temperature 100 | 43 112 Received Heat Transfer 408 | . 408 Effects 2 | . 2 Interference 2 | . 2 Siege Activations . | . . Martial Activations . | . . Shielding Activations . | . . Robots Disrupted . | . . Combat Hostiles . | . . Robots Corrupted . | . . Combat Hostiles . | . . Parts Fried . | . . Impact Corruptions . | . . Robots Melted . | . . Combat Hostiles . | . . Parts Melted 1 | . 1 Heat Transferred 843 | 148 695 Parts Sabotaged . | . . Parts Stolen . | . . Parts Stripped . | . . Power Chain Reactions . | . . Alert | -11 -10 ------- Run | Yrd Mat Maximum Alert Level . | . . Low Security (%) 100 | 100 100 Level 1 . | . . Level 2 . | . . Level 3 . | . . Level 4 . | . . Level 5 . | . . High Security . | . . Max Security . | . . Peak Influence 147 | 5 147 Initial 3 | . 3 Average 52 | . 66 Influence Increases 318 | 15 303 Destroy 0b10 Robot/C 160 | . 160 Destroy 0b10 Robot/NC 20 | 15 5 Destroy Leader 20 | . 20 Disable Machine 45 | . 45 Destroy Structure 43 | . 43 Lose Combat Pursuer 30 | . 30 Influence Decreases 205 | 10 195 Entered New Map 2 | . 2 Time Decay 153 | 10 143 Lost Part 50 | . 50 Squads Dispatched 3 | . 3 Investigation 2 | . 2 Extermination . | . . Reinforcement 1 | . 1 Assault . | . . Garrison . | . . Intercept . | . . Searches Triggered . | . . Construction Impeded . | . . Haulers Reinforced . | . . Active Scanning Responses . | . . Cargo Convoy Interrupts . | . . Stealth | -11 -10 --------- Run | Yrd Mat Distress Signals 1 | . 1 Communications Jammed . | . . Distress Signals . | . . Times Spotted 17 | . 17 Peak Tracking Total 6 | . 6 Tactical Retreats 1 | . 1 Traps | -11 -10 ------- Run | Yrd Mat Traps Triggered 1 | . 1 Indirectly . | . . Trap Hack Attempts . | . . Triggered . | . . Disarmed . | . . Reprogrammed . | . . Reused . | . . Traps Extracted . | . . Installed . | . . Triggered . | . . Machines | -11 -10 ---------- Run | Yrd Mat Machines Disabled 3 | . 3 Max in Single Turn 2 | . 2 Machines Repaired . | . . Machines Dismantled . | . . Machines Sabotaged . | . . Overloaded Fab Kills . | . . Hacking | -11 -10 --------- Run | Yrd Mat Machines Accessed 1 | . 1 Terminals 1 | . 1 Fabricators . | . . Repair Stations . | . . Recycling Units . | . . Scanalyzers . | . . Garrison Access . | . . Total Hacks 2 | . 2 Successful . | . . Failed 2 | . 2 Catastrophic 1 | . 1 Database Lockouts . | . . Manual 2 | . 2 Terminals 2 | . 2 Fabricators . | . . Repair Stations . | . . Recycling Units . | . . Scanalyzers . | . . Garrison Access . | . . Terminal Hacks . | . . Fabricator Hacks . | . . Repair Station Hacks . | . . Recycling Unit Hacks . | . . Scanalyzer . | . . Garrison Access Hacks . | . . Unauthorized Hacks . | . . Terminals . | . . Fabricators . | . . Repair Stations . | . . Recycling Units . | . . Scanalyzers . | . . Garrison Access . | . . Data Cores Recovered . | . . Used . | . . Hacking Detections 1 | . 1 Full Trace Events 1 | . 1 Feedback Events . | . . Feedback Blocked . | . . Robot Schematics Acquired . | . . Robots Built . | . . Authchips . | . . Time . | . . Total Robot Build Rating . | . . Part Schematics Acquired . | . . Parts Built . | . . Authchips . | . . Time . | . . Total Part Build Rating . | . . Part Studies Acquired . | . . Parts Repaired . | . . Time . | . . Parts Recycled . | . . Recycled Matter . | . . Retrieved Matter . | . . Retrieved Components . | . . Parts Scanalyzed . | . . Part Schematics Acquired . | . . Parts Damaged . | . . Bothacking | -11 -10 ------------ Run | Yrd Mat Used RIF Installer . | . . Robots Hacked . | . . Non-combat . | . . Combat . | . . Robot Hacks Applied . | . . Relay Couplers Released . | . . Fabnet Peak Effective % . | . . Robots Rewired . | . . Allies Hacked . | . . Hacks Repelled . | . . Allies | -11 -10 -------- Run | Yrd Mat Total Allies . | . . Largest Group . | . . Highest-Rated Group . | . . Highest-Rated Ally . | . . Total Orders . | . . Ally Attacks . | . . Total Damage . | . . Kills . | . . Allies Corrupted . | . . Allies Melted . | . . Intel | -11 -10 ------- Run | Yrd Mat Active Infowar (turns) 240 | 10 230 Sensors 79 | . 79 Seismic 161 | 10 151 Robot Analysis Total . | . . Derelict Logs Recovered . | . . Drone Launches . | . . Drone Recoveries . | . . Exploration | -11 -10 ------------- Run | Yrd Mat Turns Passed 480 | 99 381 Spaces Moved 243 | 55 188 Core 21 | 14 7 Treads . | . . Legs 222 | 41 181 Wheels . | . . Hover . | . . Flight . | . . Fastest Speed 50 | 50 120 Average Speed 118 | 107 121 Slowest Speed 190 | 150 190 Overloaded Moves . | . . Propulsion Burnouts . | . . Robots Hopped . | . . Potential Cave-ins . | . . Cave-ins Triggered . | . . Exploration Rate (%) 17 | 5 29 Regions Visited 1 Branch Regions . Pre-discovered Areas . | . . Known Exits Taken . | . . Unknown Exits Taken 1 | 1 . Scrap Searched . | . . Spaces Dug . | . . Terrain Destroyed 56 | . 56 Melee . | . . Projectile . | . . AOE 56 | . 56 Terrain Rammed . | . . Walls Destroyed . | . . Machines Disabled . | . . Actions | -11 -10 --------- Run | Yrd Mat Total 344 | 80 264 Wait 14 | . 14 Move 242 | 54 188 Hop . | . . Pick Up 20 | 11 9 Fast Attach . | . . Attach 13 | 7 6 Detach . | . . Swap 4 | . 4 Drop . | . . Fire 51 | 8 43 Melee . | . . Ram . | . . Kick . | . . Crush . | . . Escape Stasis . | . . Rewire . | . . Trap . | . . Miscellaneous . | . . Route ------- -11/Scrapyard -10/Materials History --------- Turn | Location | Event 8 | -11/Scrapyard | Discovered new exit (range 16) 100 | -11/Scrapyard | Entered Materials 276 | -10/Materials | Core integrity fell below 50% 294 | -10/Materials | Core integrity fell below 20% 332 | -10/Materials | Lost 6 parts (1p2n1u2w) 356 | -10/Materials | Build established: Mutant 481 | -10/Materials | Destroyed by G-34 Mercenary with Small Laser Last Messages --------------- 00432_ Flight Unit melted. 00432_ S-10 Pest destroyed. 00432_ Switching to secondary target: S-10 Pest. 00432_ Atomic Centrifuge disabled. 00441_ Destroyed Flight Unit. 00444_ S-10 Pest destroyed. 00448_ U-05 Engineer lays Concrete. 00452_ O-16 Technician: "IFF HANDSHAKE FAILED. SECURING TERMINAL." 00452_ U-05 Engineer lays Concrete. 00454_ K-01 Serf cleans the Electrolysis Chamber. 00457_ Overheating: System interference. 00457_ Particle Gun temporarily disabled. 00457_ Sml. Laser temporarily disabled. 00461_ ALERT: Hostiles spotted, dispatching reinforcements to Terminal M003. 00466_ K-01 Serf collects debris. 00471_ K-01 Serf cleans the Electrolysis Chamber. Map ----- +----------------------------------------------------+ | | | ?????????????????????????????????????????????????? | | ?????????????????????????????????????????????????? | | ?????????????????????????????????????????????????? | | ?????????????????????????????????????????????????? | | ?????????????????????????????????????????????????? | | ?????????????????????????????????????????????????? | | ?????????????????????????????????????????????????? | | ?????????????????????????????????????????????????? | | ?????????????????????????????????????????????????? | | ?????????????????????????????????????????????????? | | ?????????????????????????????????????????????????? | | ?????????????????????????????????????????????????? | | ?????????????????????????????????????????????????? | | ?????????????????????????????????????????????????? | | ?????????????#???????????????????????????????????? | | ?????????????+ ??????????????????????????????????? | | ?????????????# ??????????????????????????????????? | | ?????????????# ?????????????????????????????????? | | ?????????????# ?????????????????????????????????? | | ?????????????# ??????????????????? ?????????????? | | ?????????????#? ????????????????? ????????????? | | ?????????????# ????????????????# ??#??????????? | | ?????????????# #############+## #??????????? | | ?????????????# g ????????? | | ?????????????# @ T ??????????? | | ?????????????# ????????? | | ?????????????#k """ """ ## #??????????? | | ?????????????# """ """ #####?##??????????? | | ?????????????# "T" k""" """ + ? ????????????? | | ?????????? + """ g #?????????????????? | | ????????? """# g= #?????????????????? | | ???????? ""?# #?????????????????? | | ??????????"??# ###+####### #?????????????????? | | ?????????????# #?????????# #?????????????????? | | ?????????????# #?????????# #?????????????????? | | ?????????????# #?????????# ?#?????????????????? | | ?????????????# #?????????# #?????????????????? | | ?????????????# #?????????# #?????????????????? | | ?????????????# #?????????# #?????????????????? | | ????????????## ##????????# #?????????????????? | | ?## ######### ########?#= #?????????????????? | | ? #?#%[ #?????????????????? | | ?? T #?#%* #### """ ???????? | | ??????? ### + """ ???????? | | ????????????# #??# #### """ ???????? | | ??????????#####+###### ### #?????????????????? | | ??????????# ## ####"######?????????????? | | ????????### ## ## #?????????????? | | ????????## ! "# ## " " """#?????????????? | +----------------------------------------------------+ Best States ------------- Heat Dissipation 35 Energy Generation 10 Energy Capacity 125 Matter Stores 300 Matter Capacity 300 Sight Range 16 Robot Scan Range 14 Terrain Scan Density 10 Evasion (%) 55 Item Schematics ----------------- None Robot Schematics ------------------ None Fabricated ------------ Nothing Repaired ---------- Nothing Studied --------- None Alien Tech Used ----------------- None Achievements -------------- None Challenges ------------ None Game ------ Seed HardcellThiefArray Manual? 0 Play Time 00:06:31 Cumulative 32.9 hours Start 2025.10.28 @ 06:01:55 End 2025.10.28 @ 06:08:16 Sessions 1 Manual Loads 0 Difficulty Rogue Special Mode None Game No. 70 Rogue 70 Adventurer 0 Explorer 0 Win Type - Total 0 Types 0/0/0/0/0/0/0/0/0/0 Lore% 20 Gallery% 31 Achievement% 16 Wizard Run 0 Options --------- Layout 2 ASCII 0 Keyboard 0 Movement Mouse Keybinds 0 Fullscreen 1 Font 24/Smallcaps Map View 50x49 Zoom Use 0% Tactical HUD 1 Map Filters NONE Filters NONE Steam 1 RUN: 970d0661-4e98-4c61-8d8c-e5b612e37ca1